[Event "*** Titled Tuesday Blitz"]
[Site "Chess.com"]
[Date "2021.04.06"]
[Round "2"]
[White "Anton_Demchenko"]
[Black "IriBu"]
[Result "1-0"]
[WhiteElo "2890"]
[BlackElo "2558"]
[TimeControl "180+1"]
[EndTime "10:18:37 PDT"]
[Termination "Anton_Demchenko won on time"]

1. e4 {[%clk 0:03:00.9]} 1... c5 {[%clk 0:02:59.5]} 2. Nf3 {[%clk 0:03:00.8]}
2... d6 {[%clk 0:03:00.1]} 3. Bb5+ {[%clk 0:02:59.3]} 3... Nd7 {[%clk
0:03:00.1]} 4. d4 {[%clk 0:02:57.8]} 4... a6 {[%clk 0:02:57.5]} 5. Bxd7+ {[%clk
0:02:56.4]} 5... Bxd7 {[%clk 0:02:58.4]} 6. dxc5 {[%clk 0:02:50.1]} 6... dxc5
{[%clk 0:02:59.3]} 7. Qe2 {[%clk 0:02:44.2]} 7... Qc7 {[%clk 0:02:57]} 8. O-O
{[%clk 0:02:42.4]} 8... e6 {[%clk 0:02:57.4]} 9. a4 {[%clk 0:02:34.7]} 9... b6
{[%clk 0:02:51.3]} 10. Nbd2 {[%clk 0:02:27]} 10... Be7 {[%clk 0:02:48.7]} 11.
Nc4 {[%clk 0:02:25.9]} 11... Nf6 {[%clk 0:02:43.5]} 12. Bg5 {[%clk 0:02:24.6]}
12... h6 {[%clk 0:02:38.3]} 13. Bh4 {[%clk 0:02:22.6]} 13... O-O {[%clk
0:02:30.9]} 14. Bg3 {[%clk 0:02:00.1]} 14... Qb7 {[%clk 0:02:27.1]} 15. Nfd2
{[%clk 0:01:54.5]} 15... b5 {[%clk 0:02:20.5]} 16. axb5 {[%clk 0:01:46.8]} 16...
axb5 {[%clk 0:02:21.4]} 17. Nd6 {[%clk 0:01:45.8]} 17... Qc6 {[%clk 0:02:14]}
18. e5 {[%clk 0:01:41.5]} 18... Bxd6 {[%clk 0:02:05.7]} 19. exf6 {[%clk
0:01:36.8]} 19... Bxg3 {[%clk 0:01:48.9]} 20. hxg3 {[%clk 0:00:44.2]} 20... g6
{[%clk 0:01:35.6]} 21. Rad1 {[%clk 0:00:37.4]} 21... Rfd8 {[%clk 0:01:32.8]} 22.
Nf3 {[%clk 0:00:36.9]} 22... Be8 {[%clk 0:01:28.1]} 23. Qe3 {[%clk 0:00:36.8]}
23... Kh7 {[%clk 0:01:27]} 24. Ne5 {[%clk 0:00:36.8]} 24... Qb7 {[%clk
0:00:49.6]} 25. Ng4 {[%clk 0:00:36.7]} 25... g5 {[%clk 0:00:49.5]} 26. Ne5
{[%clk 0:00:25.2]} 26... Bc6 {[%clk 0:00:38]} 27. f3 {[%clk 0:00:22.4]} 27... c4
{[%clk 0:00:31.4]} 28. Qc5 {[%clk 0:00:17]} 28... Be8 {[%clk 0:00:30.2]} 29. Kh2
{[%clk 0:00:13.2]} 29... Rd5 {[%clk 0:00:22.9]} 30. Qe3 {[%clk 0:00:13.1]} 30...
Rad8 {[%clk 0:00:16.9]} 31. Qe4+ {[%clk 0:00:12.7]} 31... Kg8 {[%clk 0:00:17.2]}
32. Ng4 {[%clk 0:00:10.5]} 32... Rxd1 {[%clk 0:00:01.7]} 33. Nxh6+ {[%clk
0:00:10.9]} 33... Kf8 {[%clk 0:00:01]} 34. Qh7 {[%clk 0:00:08.5]} 1-0

[Event "*** Titled Tuesday Blitz"]
[Site "Chess.com"]
[Date "2021.04.06"]
[Round "2"]
[White "Fy_Rakotomaharo"]
[Black "Slovak_fighter2000"]
[Result "1/2-1/2"]
[WhiteElo "2689"]
[BlackElo "2493"]
[TimeControl "180+1"]
[EndTime "10:18:37 PDT"]
[Termination "Game drawn by agreement"]

1. d4 {[%clk 0:03:00.9]} 1... Nf6 {[%clk 0:02:51.4]} 2. g3 {[%clk 0:03:01.2]}
2... e6 {[%clk 0:02:51.4]} 3. Bg2 {[%clk 0:03:00.6]} 3... d5 {[%clk 0:02:52]} 4.
c4 {[%clk 0:02:59.9]} 4... Be7 {[%clk 0:02:52.4]} 5. Nf3 {[%clk 0:02:59.8]} 5...
O-O {[%clk 0:02:53]} 6. O-O {[%clk 0:03:00.2]} 6... dxc4 {[%clk 0:02:53.5]} 7.
Qc2 {[%clk 0:03:00.2]} 7... a6 {[%clk 0:02:53.8]} 8. a4 {[%clk 0:02:56.5]} 8...
Bd7 {[%clk 0:02:53.6]} 9. Qxc4 {[%clk 0:02:46.7]} 9... Bc6 {[%clk 0:02:52.6]}
10. Bg5 {[%clk 0:02:44.1]} 10... Bd5 {[%clk 0:02:51.9]} 11. Qc1 {[%clk
0:02:43.8]} 11... c6 {[%clk 0:02:43.9]} 12. Nbd2 {[%clk 0:02:33.2]} 12... Bxf3
{[%clk 0:02:38.9]} 13. Nxf3 {[%clk 0:02:32.7]} 13... a5 {[%clk 0:02:39.3]} 14.
Rd1 {[%clk 0:02:21.9]} 14... Na6 {[%clk 0:02:36.9]} 15. Ne5 {[%clk 0:02:15.6]}
15... Nb4 {[%clk 0:02:32.6]} 16. e4 {[%clk 0:02:09.9]} 16... Nd7 {[%clk
0:02:30.4]} 17. Be3 {[%clk 0:02:06.6]} 17... Nxe5 {[%clk 0:02:24.7]} 18. dxe5
{[%clk 0:02:06.4]} 18... Qc7 {[%clk 0:02:24.9]} 19. Qc3 {[%clk 0:01:50.6]} 19...
Rfd8 {[%clk 0:02:22.8]} 20. f4 {[%clk 0:01:44.2]} 20... Rxd1+ {[%clk 0:02:21.3]}
21. Rxd1 {[%clk 0:01:43.6]} 21... Rd8 {[%clk 0:02:21.9]} 22. Rd2 {[%clk
0:01:31.9]} 22... Na6 {[%clk 0:02:06.5]} 23. Rxd8+ {[%clk 0:01:19.1]} 23... Qxd8
{[%clk 0:02:07.4]} 24. Bf3 {[%clk 0:01:11.6]} 24... Bb4 {[%clk 0:02:03.9]} 25.
Qc2 {[%clk 0:01:09.9]} 25... Qe7 {[%clk 0:01:56.3]} 26. Kg2 {[%clk 0:01:09.7]}
26... Bc5 {[%clk 0:01:55.1]} 27. Bd2 {[%clk 0:01:09.7]} 27... Nb4 {[%clk
0:01:54.4]} 28. Qd1 {[%clk 0:01:05.2]} 28... Qd7 {[%clk 0:01:50.6]} 29. Bc3
{[%clk 0:01:04.1]} 29... Qxd1 {[%clk 0:01:45.5]} 30. Bxd1 {[%clk 0:01:05]} 30...
Kf8 {[%clk 0:01:41.2]} 31. f5 {[%clk 0:01:02.8]} 31... g6 {[%clk 0:01:38.9]} 32.
g4 {[%clk 0:01:02.3]} 32... b6 {[%clk 0:01:35.5]} 33. Kf3 {[%clk 0:00:55.7]}
33... Kg7 {[%clk 0:01:28.8]} 34. h4 {[%clk 0:00:51.3]} 34... h6 {[%clk
0:01:27.9]} 35. Ke2 {[%clk 0:00:38.1]} 35... Na2 {[%clk 0:01:19.9]} 36. Bb3
{[%clk 0:00:12.7]} 36... Nxc3+ {[%clk 0:01:17.4]} 37. bxc3 {[%clk 0:00:13.6]}
37... gxf5 {[%clk 0:01:17.5]} 38. exf5 {[%clk 0:00:14.5]} 38... exf5 {[%clk
0:01:16.9]} 39. gxf5 {[%clk 0:00:15.4]} 39... f6 {[%clk 0:01:13.6]} 40. e6
{[%clk 0:00:13.4]} 40... Kf8 {[%clk 0:01:12.6]} 41. Bc4 {[%clk 0:00:09.5]} 41...
Ke7 {[%clk 0:01:10.2]} 42. Ba6 {[%clk 0:00:09.1]} 42... Bd6 {[%clk 0:01:08.8]}
43. Kf3 {[%clk 0:00:08]} 43... Be5 {[%clk 0:01:08.5]} 44. c4 {[%clk 0:00:08.5]}
44... Bd4 {[%clk 0:01:04.5]} 45. Kg4 {[%clk 0:00:08.6]} 45... Bf2 {[%clk
0:01:03.7]} 46. Bb7 {[%clk 0:00:08.6]} 46... c5 {[%clk 0:01:03.7]} 47. Bg2
{[%clk 0:00:05.2]} 47... Be1 {[%clk 0:01:03.7]} 48. h5 {[%clk 0:00:05.3]} 48...
Bd2 {[%clk 0:01:03.1]} 49. Kf3 {[%clk 0:00:05.9]} 49... Bg5 {[%clk 0:01:03.2]}
50. Ke4 {[%clk 0:00:06.8]} 50... Kd6 {[%clk 0:01:03.1]} 51. Bf1 {[%clk
0:00:07.2]} 51... Bh4 {[%clk 0:01:02.2]} 52. Kf3 {[%clk 0:00:07.6]} 52... Be1
{[%clk 0:01:00.9]} 53. Bd3 {[%clk 0:00:07.5]} 53... Bd2 {[%clk 0:01:00.7]} 54.
Ke4 {[%clk 0:00:08.4]} 54... Bg5 {[%clk 0:00:59.6]} 55. Bf1 {[%clk 0:00:09.3]}
55... Bh4 {[%clk 0:00:58]} 56. Kd3 {[%clk 0:00:10.2]} 56... Bg3 {[%clk
0:00:57.8]} 57. Bg2 {[%clk 0:00:11.1]} 57... Be5 {[%clk 0:00:55.7]} 58. Ke4
{[%clk 0:00:11.4]} 1/2-1/2

[Event "*** Titled Tuesday Blitz"]
[Site "Chess.com"]
[Date "2021.04.06"]
[Round "2"]
[White "HackingKid98"]
[Black "Grineva_Marianna"]
[Result "1-0"]
[WhiteElo "2459"]
[BlackElo "2237"]
[TimeControl "180+1"]
[EndTime "10:18:40 PDT"]
[Termination "HackingKid98 won by resignation"]

1. c4 {[%clk 0:02:59.2]} 1... e5 {[%clk 0:02:58.7]} 2. g3 {[%clk 0:02:58.8]}
2... d6 {[%clk 0:02:57.4]} 3. Bg2 {[%clk 0:02:58.8]} 3... Be7 {[%clk 0:02:57.9]}
4. Nf3 {[%clk 0:02:58.8]} 4... f5 {[%clk 0:02:57.9]} 5. O-O {[%clk 0:02:58.9]}
5... Nf6 {[%clk 0:02:58.1]} 6. d4 {[%clk 0:02:58.8]} 6... Nbd7 {[%clk 0:02:54]}
7. Nc3 {[%clk 0:02:56.3]} 7... c6 {[%clk 0:02:54.1]} 8. dxe5 {[%clk 0:02:54.9]}
8... dxe5 {[%clk 0:02:53.4]} 9. e4 {[%clk 0:02:55]} 9... fxe4 {[%clk 0:02:36.8]}
10. Ng5 {[%clk 0:02:53]} 10... O-O {[%clk 0:02:36.5]} 11. Ngxe4 {[%clk
0:02:39.9]} 11... Nxe4 {[%clk 0:02:29.2]} 12. Nxe4 {[%clk 0:02:40.8]} 12... Nf6
{[%clk 0:02:28.9]} 13. Qe2 {[%clk 0:02:38.2]} 13... Qc7 {[%clk 0:02:21.4]} 14.
Bd2 {[%clk 0:02:32.2]} 14... Bf5 {[%clk 0:02:09.8]} 15. Bc3 {[%clk 0:02:31.5]}
15... Rae8 {[%clk 0:02:04.1]} 16. Rfe1 {[%clk 0:02:28.5]} 16... Nxe4 {[%clk
0:01:46.2]} 17. Bxe4 {[%clk 0:02:29.4]} 17... Bc5 {[%clk 0:01:39.4]} 18. Rf1
{[%clk 0:02:20]} 18... Qb6 {[%clk 0:01:30.3]} 19. Bxf5 {[%clk 0:01:51.8]} 19...
Rxf5 {[%clk 0:01:30.7]} 20. Kg2 {[%clk 0:01:51.5]} 20... Ref8 {[%clk 0:01:22.6]}
21. f3 {[%clk 0:01:51]} 21... Bd4 {[%clk 0:01:18]} 22. Bxd4 {[%clk 0:01:47]}
22... Qxd4 {[%clk 0:01:18.1]} 23. Rad1 {[%clk 0:01:46.1]} 23... Qc5 {[%clk
0:01:13.2]} 24. Qe4 {[%clk 0:01:42.1]} 24... Qb4 {[%clk 0:01:07.9]} 25. b3
{[%clk 0:01:37.6]} 25... Qa3 {[%clk 0:00:52.7]} 26. Rf2 {[%clk 0:01:36.9]} 26...
a5 {[%clk 0:00:51.4]} 27. Rd3 {[%clk 0:01:35.6]} 27... a4 {[%clk 0:00:49.6]} 28.
bxa4 {[%clk 0:01:34.9]} 28... Qxa4 {[%clk 0:00:49.8]} 29. Rfd2 {[%clk
0:01:34.8]} 29... h6 {[%clk 0:00:38]} 30. Rd8 {[%clk 0:01:33]} 30... Qa5 {[%clk
0:00:31.9]} 31. Qxf5 {[%clk 0:01:22.9]} 31... Qxd2+ {[%clk 0:00:28.3]} 32. Rxd2
{[%clk 0:01:21.2]} 32... Rxf5 {[%clk 0:00:28.2]} 33. Rb2 {[%clk 0:01:18.9]}
33... Rf7 {[%clk 0:00:27.4]} 34. Kf2 {[%clk 0:01:18.9]} 34... Rd7 {[%clk
0:00:26.4]} 35. Ke3 {[%clk 0:01:18.4]} 35... Kf7 {[%clk 0:00:26.7]} 36. Ke4
{[%clk 0:01:17.3]} 36... Ke6 {[%clk 0:00:26.8]} 37. c5 {[%clk 0:01:16.7]} 37...
Rf7 {[%clk 0:00:20.2]} 38. Rd2 {[%clk 0:01:15.1]} 38... b5 {[%clk 0:00:14.5]}
39. Rd6+ {[%clk 0:01:14]} 39... Ke7 {[%clk 0:00:13.8]} 40. Rxc6 {[%clk
0:01:14.9]} 40... Kd7 {[%clk 0:00:12.7]} 41. Rb6 {[%clk 0:01:14.9]} 41... Rf8
{[%clk 0:00:12.9]} 42. Kd5 {[%clk 0:01:13.2]} 42... Ra8 {[%clk 0:00:13]} 43.
Rb7+ {[%clk 0:01:13]} 43... Kc8 {[%clk 0:00:13.3]} 44. Rxg7 {[%clk 0:01:13.9]}
44... Rxa2 {[%clk 0:00:12.9]} 45. c6 {[%clk 0:01:11]} 45... Rxh2 {[%clk
0:00:11.6]} 46. Kc5 {[%clk 0:01:05.2]} 46... Rf2 {[%clk 0:00:09.1]} 47. Kb6
{[%clk 0:01:04.5]} 47... Kd8 {[%clk 0:00:06.8]} 48. Rg8+ {[%clk 0:01:05.4]}
48... Ke7 {[%clk 0:00:06.7]} 49. c7 {[%clk 0:01:06.3]} 49... Rc2 {[%clk
0:00:05.3]} 50. c8=Q {[%clk 0:01:07.2]} 50... Rxc8 {[%clk 0:00:05.5]} 51. Rxc8
{[%clk 0:01:07.1]} 51... Kd6 {[%clk 0:00:05.8]} 52. Kxb5 {[%clk 0:01:06.3]}
52... Kd5 {[%clk 0:00:06]} 53. Rd8+ {[%clk 0:01:05.5]} 53... Ke6 {[%clk
0:00:06.4]} 54. Kc4 {[%clk 0:01:06.4]} 54... Kf5 {[%clk 0:00:06.5]} 55. Rf8+
{[%clk 0:01:05.8]} 55... Kg5 {[%clk 0:00:05.9]} 56. Kd3 {[%clk 0:01:06.7]} 56...
h5 {[%clk 0:00:05]} 57. Ke4 {[%clk 0:01:05.6]} 57... h4 {[%clk 0:00:05.2]} 58.
Rg8+ {[%clk 0:01:04.6]} 58... Kf6 {[%clk 0:00:04.5]} 59. gxh4 {[%clk 0:01:04.3]}
1-0

[Event "*** Titled Tuesday Blitz"]
[Site "Chess.com"]
[Date "2021.04.06"]
[Round "2"]
[White "ExtremeLearner"]
[Black "WiktoriaPOL"]
[Result "1-0"]
[WhiteElo "2380"]
[BlackElo "2038"]
[TimeControl "180+1"]
[EndTime "10:18:40 PDT"]
[Termination "ExtremeLearner won on time"]

1. d4 {[%clk 0:03:00.9]} 1... d5 {[%clk 0:02:57.4]} 2. Bf4 {[%clk 0:03:01.2]}
2... Nf6 {[%clk 0:02:53.3]} 3. e3 {[%clk 0:03:01.3]} 3... c5 {[%clk 0:02:52.7]}
4. c3 {[%clk 0:03:00.3]} 4... Nc6 {[%clk 0:02:52.3]} 5. Nd2 {[%clk 0:03:00.8]}
5... Bf5 {[%clk 0:02:46.6]} 6. Ngf3 {[%clk 0:02:58.1]} 6... Qb6 {[%clk 0:02:43]}
7. Qb3 {[%clk 0:02:36.5]} 7... c4 {[%clk 0:02:41.7]} 8. Qxb6 {[%clk 0:02:36.2]}
8... axb6 {[%clk 0:02:42.6]} 9. a3 {[%clk 0:02:36.1]} 9... b5 {[%clk 0:02:41.7]}
10. Rc1 {[%clk 0:02:35.9]} 10... e6 {[%clk 0:02:36.7]} 11. Nh4 {[%clk 0:02:36]}
11... Bg6 {[%clk 0:02:34.9]} 12. Nxg6 {[%clk 0:02:36]} 12... hxg6 {[%clk
0:02:33.8]} 13. h3 {[%clk 0:02:36.5]} 13... Be7 {[%clk 0:02:27]} 14. Be2 {[%clk
0:02:31.4]} 14... Nd7 {[%clk 0:02:23.9]} 15. Bd1 {[%clk 0:02:20]} 15... f6
{[%clk 0:02:15]} 16. Bc2 {[%clk 0:02:18.6]} 16... Kf7 {[%clk 0:02:12.2]} 17. O-O
{[%clk 0:02:16.8]} 17... g5 {[%clk 0:01:57.7]} 18. Bh2 {[%clk 0:02:14]} 18... f5
{[%clk 0:01:50.9]} 19. f3 {[%clk 0:02:06.8]} 19... Rh6 {[%clk 0:01:39.7]} 20. e4
{[%clk 0:01:45.9]} 20... f4 {[%clk 0:01:25.3]} 21. Rfe1 {[%clk 0:01:41.4]} 21...
Nf6 {[%clk 0:01:09]} 22. e5 {[%clk 0:01:35.6]} 22... Nd7 {[%clk 0:01:05.8]} 23.
Nf1 {[%clk 0:01:35.3]} 23... Rhh8 {[%clk 0:00:37.5]} 24. Kf2 {[%clk 0:01:30.9]}
24... Rh6 {[%clk 0:00:36.7]} 25. Nd2 {[%clk 0:01:20.9]} 25... Nb6 {[%clk
0:00:33.7]} 26. Bd1 {[%clk 0:01:02.7]} 26... Na4 {[%clk 0:00:31]} 27. Rc2 {[%clk
0:01:03.1]} 27... g6 {[%clk 0:00:15.1]} 28. Nb1 {[%clk 0:01:02.7]} 28... Kg7
{[%clk 0:00:13.5]} 29. Rce2 {[%clk 0:01:00.9]} 29... Kf7 {[%clk 0:00:12.8]} 30.
Rh1 {[%clk 0:01:00.7]} 30... Kg7 {[%clk 0:00:12.1]} 31. Kf1 {[%clk 0:01:00.8]}
31... Rah8 {[%clk 0:00:10.5]} 32. Bg1 {[%clk 0:01:01.1]} 32... Kf7 {[%clk
0:00:09.2]} 33. Bf2 {[%clk 0:01:01.6]} 33... Kg7 {[%clk 0:00:08.5]} 34. Be1
{[%clk 0:01:01.9]} 34... Kf7 {[%clk 0:00:07.3]} 35. Rc2 {[%clk 0:01:01.9]} 35...
Kg7 {[%clk 0:00:05.9]} 36. Bd2 {[%clk 0:01:02.4]} 36... Kf7 {[%clk 0:00:05.9]}
37. Bc1 {[%clk 0:01:02.9]} 37... Kg7 {[%clk 0:00:05.6]} 38. Rf2 {[%clk
0:01:02.6]} 38... Kf7 {[%clk 0:00:05.3]} 39. Ke1 {[%clk 0:00:58.4]} 39... Kg7
{[%clk 0:00:03.8]} 40. Rff1 {[%clk 0:00:57.8]} 40... Kf7 {[%clk 0:00:03.5]} 41.
Rh2 {[%clk 0:00:58.1]} 41... Kg7 {[%clk 0:00:03.2]} 42. Rfh1 {[%clk 0:00:58.7]}
42... Kf7 {[%clk 0:00:03.6]} 43. Kf2 {[%clk 0:00:59.1]} 43... Kg7 {[%clk
0:00:03.4]} 44. g3 {[%clk 0:00:58.2]} 44... Kf7 {[%clk 0:00:02.7]} 45. Nd2
{[%clk 0:00:53.8]} 45... Kg7 {[%clk 0:00:02]} 46. Nf1 {[%clk 0:00:54.1]} 46...
Kf7 {[%clk 0:00:02.5]} 47. Kg1 {[%clk 0:00:53.9]} 47... Kg7 {[%clk 0:00:02.6]}
48. gxf4 {[%clk 0:00:54]} 48... gxf4 {[%clk 0:00:03.5]} 49. Bxf4 {[%clk
0:00:54.4]} 49... Nxb2 {[%clk 0:00:03.7]} 50. Rxb2 {[%clk 0:00:53.9]} 50... Rxh3
{[%clk 0:00:03.5]} 51. Rxh3 {[%clk 0:00:53.8]} 51... Rxh3 {[%clk 0:00:04.1]} 52.
Kg2 {[%clk 0:00:53.2]} 52... Rh4 {[%clk 0:00:04]} 53. Bg3 {[%clk 0:00:53.5]}
53... Rh5 {[%clk 0:00:03.7]} 54. Rxb5 {[%clk 0:00:54]} 1-0

[Event "*** Titled Tuesday Blitz"]
[Site "Chess.com"]
[Date "2021.04.06"]
[Round "2"]
[White "DrVelja"]
[Black "eldur16"]
[Result "1-0"]
[WhiteElo "2876"]
[BlackElo "2555"]
[TimeControl "180+1"]
[EndTime "10:18:42 PDT"]
[Termination "DrVelja won by resignation"]

1. e4 {[%clk 0:03:00.9]} 1... Nf6 {[%clk 0:02:59.8]} 2. e5 {[%clk 0:02:59.6]}
2... Nd5 {[%clk 0:02:59.9]} 3. d4 {[%clk 0:02:59.8]} 3... d6 {[%clk 0:03:00.1]}
4. Nf3 {[%clk 0:02:58.3]} 4... Bg4 {[%clk 0:02:59.9]} 5. Be2 {[%clk 0:02:46.6]}
5... e6 {[%clk 0:02:59.4]} 6. O-O {[%clk 0:02:46.6]} 6... Be7 {[%clk 0:02:58.3]}
7. h3 {[%clk 0:02:42.1]} 7... Bh5 {[%clk 0:02:53.2]} 8. c4 {[%clk 0:02:37.6]}
8... Nb6 {[%clk 0:02:53]} 9. b3 {[%clk 0:02:37.9]} 9... O-O {[%clk 0:02:50.4]}
10. Nc3 {[%clk 0:02:30.4]} 10... N8d7 {[%clk 0:02:38.6]} 11. exd6 {[%clk
0:02:27]} 11... cxd6 {[%clk 0:02:38.1]} 12. Be3 {[%clk 0:02:27.3]} 12... Nf6
{[%clk 0:02:32.7]} 13. Rc1 {[%clk 0:02:14.6]} 13... a5 {[%clk 0:02:28.5]} 14. a3
{[%clk 0:02:00.8]} 14... d5 {[%clk 0:02:25.4]} 15. c5 {[%clk 0:02:00.5]} 15...
Nbd7 {[%clk 0:02:21.7]} 16. b4 {[%clk 0:02:00.7]} 16... axb4 {[%clk 0:02:18.5]}
17. axb4 {[%clk 0:02:01.6]} 17... Ne4 {[%clk 0:02:15.2]} 18. b5 {[%clk
0:01:31.7]} 18... Qa5 {[%clk 0:02:08.9]} 19. Nxe4 {[%clk 0:01:16.2]} 19... dxe4
{[%clk 0:02:08]} 20. Nd2 {[%clk 0:01:17.1]} 20... Bxe2 {[%clk 0:02:05.2]} 21.
Qxe2 {[%clk 0:01:18]} 21... f5 {[%clk 0:02:00.7]} 22. Bf4 {[%clk 0:01:05]} 22...
Nf6 {[%clk 0:01:53.2]} 23. Be5 {[%clk 0:00:40.4]} 23... Nd5 {[%clk 0:01:50]} 24.
b6 {[%clk 0:00:33.6]} 24... Qa2 {[%clk 0:01:33.1]} 25. c6 {[%clk 0:00:28]} 25...
bxc6 {[%clk 0:01:12.8]} 26. b7 {[%clk 0:00:28.9]} 26... Rae8 {[%clk 0:01:05.7]}
27. Rxc6 {[%clk 0:00:27.9]} 27... Bg5 {[%clk 0:01:04.6]} 28. Qc4 {[%clk
0:00:21.3]} 28... Qxd2 {[%clk 0:00:52.1]} 29. Rxe6 {[%clk 0:00:20.9]} 29... Rxe6
{[%clk 0:00:46.2]} 30. Qxd5 {[%clk 0:00:21.2]} 30... e3 {[%clk 0:00:27.4]} 31.
Qxe6+ {[%clk 0:00:20.5]} 31... Kh8 {[%clk 0:00:26.6]} 32. b8=Q {[%clk
0:00:14.5]} 32... Rxb8 {[%clk 0:00:18]} 33. Bxb8 {[%clk 0:00:15.4]} 33... exf2+
{[%clk 0:00:12.2]} 34. Kh1 {[%clk 0:00:12.9]} 34... h6 {[%clk 0:00:10.9]} 35.
Qxf5 {[%clk 0:00:12.4]} 35... Qxd4 {[%clk 0:00:09.3]} 36. Qxf2 {[%clk
0:00:11.1]} 36... Qc4 {[%clk 0:00:05.4]} 37. Qf8+ {[%clk 0:00:10.2]} 37... Kh7
{[%clk 0:00:04.8]} 38. Be5 {[%clk 0:00:10]} 1-0

[Event "*** Titled Tuesday Blitz"]
[Site "Chess.com"]
[Date "2021.04.06"]
[Round "2"]
[White "mamonika"]
[Black "noblerone"]
[Result "0-1"]
[WhiteElo "2040"]
[BlackElo "2383"]
[TimeControl "180+1"]
[EndTime "10:18:42 PDT"]
[Termination "noblerone won on time"]

1. e4 {[%clk 0:03:00.9]} 1... c5 {[%clk 0:02:58.8]} 2. Nf3 {[%clk 0:02:59.6]}
2... e6 {[%clk 0:02:58.8]} 3. d4 {[%clk 0:02:59.9]} 3... cxd4 {[%clk 0:02:59.1]}
4. Nxd4 {[%clk 0:03:00.8]} 4... Qb6 {[%clk 0:02:54.2]} 5. Nc3 {[%clk 0:02:54.2]}
5... Bc5 {[%clk 0:02:53.6]} 6. Be3 {[%clk 0:02:52.2]} 6... Nc6 {[%clk
0:02:52.6]} 7. Ncb5 {[%clk 0:02:34.6]} 7... a6 {[%clk 0:02:22.9]} 8. Nxc6 {[%clk
0:02:32]} 8... Qxc6 {[%clk 0:02:08.3]} 9. Bxc5 {[%clk 0:02:29]} 9... Qxc5 {[%clk
0:02:03.5]} 10. Nd6+ {[%clk 0:02:28.1]} 10... Ke7 {[%clk 0:01:58.7]} 11. Nc4
{[%clk 0:02:20.1]} 11... b5 {[%clk 0:01:36.7]} 12. Ne3 {[%clk 0:02:14.5]} 12...
Qb4+ {[%clk 0:01:18.5]} 13. Qd2 {[%clk 0:02:08.2]} 13... Qxd2+ {[%clk
0:01:05.2]} 14. Kxd2 {[%clk 0:02:07.1]} 14... Bb7 {[%clk 0:01:05.7]} 15. Bd3
{[%clk 0:01:59.4]} 15... d6 {[%clk 0:01:04.8]} 16. c4 {[%clk 0:01:55.7]} 16...
Nf6 {[%clk 0:01:00.8]} 17. f3 {[%clk 0:01:54.1]} 17... b4 {[%clk 0:00:59.1]} 18.
Nc2 {[%clk 0:01:45]} 18... a5 {[%clk 0:00:59]} 19. Nd4 {[%clk 0:01:45.5]} 19...
Nd7 {[%clk 0:00:56]} 20. a3 {[%clk 0:01:30.3]} 20... Nc5 {[%clk 0:00:53.7]} 21.
Ke3 {[%clk 0:01:07.5]} 21... g6 {[%clk 0:00:52.8]} 22. Rhd1 {[%clk 0:00:51.1]}
22... Rhd8 {[%clk 0:00:51.3]} 23. Be2 {[%clk 0:00:48.8]} 23... e5 {[%clk
0:00:48.4]} 24. Nb5 {[%clk 0:00:47.8]} 24... f5 {[%clk 0:00:48.5]} 25. exf5
{[%clk 0:00:38.4]} 25... gxf5 {[%clk 0:00:48.8]} 26. axb4 {[%clk 0:00:35.4]}
26... axb4 {[%clk 0:00:45.2]} 27. Rxa8 {[%clk 0:00:34.9]} 27... Bxa8 {[%clk
0:00:44.4]} 28. Nc7 {[%clk 0:00:35.2]} 28... Bc6 {[%clk 0:00:39.9]} 29. Nd5+
{[%clk 0:00:35]} 29... Bxd5 {[%clk 0:00:39.8]} 30. cxd5 {[%clk 0:00:24.3]} 30...
Ra8 {[%clk 0:00:40.1]} 31. Kd2 {[%clk 0:00:17.5]} 31... h6 {[%clk 0:00:33]} 32.
Bc4 {[%clk 0:00:14.5]} 32... f4 {[%clk 0:00:26.9]} 33. Re1 {[%clk 0:00:10.6]}
33... Kf6 {[%clk 0:00:26.1]} 34. g3 {[%clk 0:00:11]} 34... fxg3 {[%clk
0:00:23.2]} 35. hxg3 {[%clk 0:00:11.9]} 35... Rg8 {[%clk 0:00:23.1]} 36. Rh1
{[%clk 0:00:10.8]} 36... Kg7 {[%clk 0:00:20.6]} 37. Rh4 {[%clk 0:00:09.3]} 37...
Rf8 {[%clk 0:00:20.7]} 38. Ke3 {[%clk 0:00:08.5]} 38... Rc8 {[%clk 0:00:17.3]}
39. b3 {[%clk 0:00:07.4]} 39... Nd7 {[%clk 0:00:16.3]} 40. f4 {[%clk 0:00:03.1]}
40... Ra8 {[%clk 0:00:14.5]} 0-1